[Event "Titled Tuesday Blitz May 10 Late 2022"]
[White "Karttunen, Mika"]
[Black "Lin, Dachey"]
[WhiteFideId "502081"]
[BlackFideId "2029650"]
[WhiteElo "2343"]
[BlackElo "2313"]
[Result "0-1"]
[Round "07"]
[TimeControl "180+1"]
[Date "2022.05.11"]
[WhiteClock "0:00:26"]
[BlackClock "0:00:38"]

1. e4 {[%clk 0:03:00]}  g6 {[%clk 0:03:00]} 2. d4 {[%clk 0:03:00]}  Bg7 {[%clk 0:03:01]} 3. Nc3 {[%clk 0:03:00]}  d5 {[%clk 0:03:01]} 4. exd5 {[%clk 0:02:59]}  Nf6 {[%clk 0:03:01]} 5. Bc4 {[%clk 0:02:58]}  Nbd7 {[%clk 0:03:00]} 6. Nf3 {[%clk 0:02:55]}  Nb6 {[%clk 0:03:01]} 7. Bb5+ {[%clk 0:02:56]}  Bd7 {[%clk 0:03:01]} 8. Be2 {[%clk 0:02:50]}  Nbxd5 {[%clk 0:03:01]} 9. Nxd5 {[%clk 0:02:49]}  Nxd5 {[%clk 0:03:02]} 10. c4 {[%clk 0:02:48]}  Nf6 {[%clk 0:03:02]} 11. O-O {[%clk 0:02:47]}  O-O {[%clk 0:03:02]} 12. h3 {[%clk 0:02:47]}  c6 {[%clk 0:03:03]} 13. Be3 {[%clk 0:02:47]}  Re8 {[%clk 0:03:03]} 14. Qd2 {[%clk 0:02:47]}  Qc7 {[%clk 0:03:02]} 15. Bf4 {[%clk 0:02:46]}  Qb6 {[%clk 0:03:01]} 16. b3 {[%clk 0:02:43]}  a5 {[%clk 0:02:53]} 17. Be5 {[%clk 0:02:32]}  Bf5 {[%clk 0:02:50]} 18. Qe3 {[%clk 0:02:28]}  Rad8 {[%clk 0:02:48]} 19. Rfd1 {[%clk 0:02:22]}  a4 {[%clk 0:02:46]} 20. g4 {[%clk 0:02:15]}  Bc8 {[%clk 0:02:14]} 21. Rab1 {[%clk 0:02:05]}  h5 {[%clk 0:02:09]} 22. Nh2 {[%clk 0:01:57]}  hxg4 {[%clk 0:02:05]} 23. hxg4 {[%clk 0:01:57]}  Nd7 {[%clk 0:02:05]} 24. Bxg7 {[%clk 0:01:52]}  Kxg7 {[%clk 0:02:05]} 25. Qc3 {[%clk 0:01:48]}  Kg8 {[%clk 0:01:57]} 26. bxa4 {[%clk 0:01:45]}  Qa7 {[%clk 0:01:56]} 27. a5 {[%clk 0:01:41]}  e5 {[%clk 0:01:56]} 28. d5 {[%clk 0:01:38]}  Qc5 {[%clk 0:01:46]} 29. dxc6 {[%clk 0:01:30]}  Qxc6 {[%clk 0:01:44]} 30. Bf3 {[%clk 0:01:29]}  e4 {[%clk 0:01:44]} 31. Bg2 {[%clk 0:01:23]}  Nc5 {[%clk 0:01:39]} 32. Nf1 {[%clk 0:01:11]}  Bxg4 {[%clk 0:01:38]} 33. Rd5 {[%clk 0:01:10]}  Be6 {[%clk 0:01:25]} 34. Ne3 {[%clk 0:01:07]}  Bxd5 {[%clk 0:01:24]} 35. Nxd5 {[%clk 0:01:07]}  Rxd5 {[%clk 0:01:04]} 36. cxd5 {[%clk 0:01:07]}  Qxd5 {[%clk 0:01:05]} 37. Rb5 {[%clk 0:00:52]}  Qd1+ {[%clk 0:01:04]} 38. Bf1 {[%clk 0:00:52]}  Qg4+ {[%clk 0:01:02]} 39. Qg3 {[%clk 0:00:51]}  Qxg3+ {[%clk 0:01:01]} 40. fxg3 {[%clk 0:00:51]}  Rc8 {[%clk 0:00:59]} 41. Kf2 {[%clk 0:00:45]}  Kf8 {[%clk 0:00:53]} 42. Ke3 {[%clk 0:00:46]}  Ke7 {[%clk 0:00:54]} 43. Kd4 {[%clk 0:00:46]}  Kd6 {[%clk 0:00:54]} 44. Rb6+ {[%clk 0:00:46]}  Rc6 {[%clk 0:00:54]} 45. Bb5 {[%clk 0:00:42]}  Rxb6 {[%clk 0:00:53]} 46. axb6 {[%clk 0:00:43]}  f5 {[%clk 0:00:53]} 47. a4 {[%clk 0:00:42]}  g5 {[%clk 0:00:46]} 48. a5 {[%clk 0:00:39]}  Nb3+ {[%clk 0:00:46]} 49. Ke3 {[%clk 0:00:38]}  Nxa5 {[%clk 0:00:47]} 50. g4 {[%clk 0:00:39]}  Ke5 {[%clk 0:00:44]} 51. gxf5 {[%clk 0:00:39]}  Kxf5 {[%clk 0:00:45]} 52. Kd4 {[%clk 0:00:36]}  Kf4 {[%clk 0:00:43]} 53. Kc3 {[%clk 0:00:34]}  e3 {[%clk 0:00:40]} 54. Kb4 {[%clk 0:00:32]}  Nc6+ {[%clk 0:00:40]} 55. Kc3 {[%clk 0:00:26]}  Ne7 {[%clk 0:00:38]} 0-1


[Site "https://www.chess.com"]

[Event "Titled Tuesday Blitz May 10 Late 2022"]
[White "Khripachenko, Alexander"]
[Black "Cilek, Bora"]
[WhiteFideId "54184975"]
[BlackFideId "34502165"]
[WhiteElo "2138"]
[BlackElo "2469"]
[Result "1-0"]
[Round "07"]
[TimeControl "180+1"]
[Date "2022.05.11"]
[WhiteClock "0:00:42"]
[BlackClock "0:00:03"]

1. e4 {[%clk 0:03:00]}  c5 {[%clk 0:02:58]} 2. Nf3 {[%clk 0:03:00]}  Nc6 {[%clk 0:02:58]} 3. d4 {[%clk 0:03:00]}  cxd4 {[%clk 0:02:59]} 4. Nxd4 {[%clk 0:03:01]}  g6 {[%clk 0:03:00]} 5. c4 {[%clk 0:03:01]}  Bg7 {[%clk 0:03:00]} 6. Be3 {[%clk 0:03:00]}  Nf6 {[%clk 0:03:00]} 7. Nc3 {[%clk 0:03:01]}  O-O {[%clk 0:03:01]} 8. Be2 {[%clk 0:03:00]}  d6 {[%clk 0:03:01]} 9. O-O {[%clk 0:02:59]}  Bd7 {[%clk 0:03:01]} 10. h3 {[%clk 0:02:55]}  Nxd4 {[%clk 0:03:00]} 11. Bxd4 {[%clk 0:02:56]}  Bc6 {[%clk 0:03:00]} 12. Qc2 {[%clk 0:02:57]}  a5 {[%clk 0:02:42]} 13. Rad1 {[%clk 0:02:56]}  Nd7 {[%clk 0:02:39]} 14. Bxg7 {[%clk 0:02:48]}  Kxg7 {[%clk 0:02:40]} 15. Bg4 {[%clk 0:02:49]}  Ne5 {[%clk 0:01:59]} 16. c5 {[%clk 0:02:49]}  Nxg4 {[%clk 0:01:51]} 17. hxg4 {[%clk 0:02:50]}  Qc8 {[%clk 0:01:50]} 18. cxd6 {[%clk 0:02:50]}  exd6 {[%clk 0:01:49]} 19. f3 {[%clk 0:02:50]}  Qe6 {[%clk 0:01:46]} 20. Qd2 {[%clk 0:02:50]}  Rfd8 {[%clk 0:01:40]} 21. Qe3 {[%clk 0:02:49]}  b5 {[%clk 0:01:36]} 22. Rd2 {[%clk 0:02:48]}  b4 {[%clk 0:01:36]} 23. Nd5 {[%clk 0:02:48]}  Rac8 {[%clk 0:01:23]} 24. Nb6 {[%clk 0:02:36]}  Rb8 {[%clk 0:01:06]} 25. b3 {[%clk 0:02:36]}  Kf8 {[%clk 0:00:33]} 26. Rfd1 {[%clk 0:02:35]}  Kg8 {[%clk 0:00:24]} 27. Nc4 {[%clk 0:02:27]}  d5 {[%clk 0:00:23]} 28. Qg5 {[%clk 0:01:22]}  f6 {[%clk 0:00:09]} 29. Qf4 {[%clk 0:01:22]}  Qf7 {[%clk 0:00:02]} 30. exd5 {[%clk 0:01:17]}  Bb5 {[%clk 0:00:02]} 31. Nd6 {[%clk 0:01:15]}  Qa7+ {[%clk 0:00:02]} 32. Rd4 {[%clk 0:01:09]}  Qc7 {[%clk 0:00:02]} 33. Nxb5 {[%clk 0:01:05]}  Qxf4 {[%clk 0:00:02]} 34. Rxf4 {[%clk 0:01:06]}  Rxb5 {[%clk 0:00:03]} 35. d6 {[%clk 0:01:04]}  Kf7 {[%clk 0:00:03]} 36. Rc4 {[%clk 0:01:04]}  Rb6 {[%clk 0:00:02]} 37. Rc7+ {[%clk 0:01:02]}  Kg8 {[%clk 0:00:03]} 38. d7 {[%clk 0:01:02]}  Kf7 {[%clk 0:00:03]} 39. Rd5 {[%clk 0:00:59]}  Ke7 {[%clk 0:00:02]} 40. Rxa5 {[%clk 0:00:59]}  Rxd7 {[%clk 0:00:02]} 41. Rxd7+ {[%clk 0:01:00]}  Kxd7 {[%clk 0:00:03]} 42. Ra7+ {[%clk 0:01:01]}  Ke6 {[%clk 0:00:02]} 43. Rxh7 {[%clk 0:01:01]}  Ra6 {[%clk 0:00:03]} 44. Rb7 {[%clk 0:01:02]}  Rxa2 {[%clk 0:00:03]} 45. Rxb4 {[%clk 0:01:02]}  Ke5 {[%clk 0:00:04]} 46. Kh2 {[%clk 0:01:01]}  g5 {[%clk 0:00:04]} 47. Kg3 {[%clk 0:01:01]}  Rb2 {[%clk 0:00:05]} 48. Rb5+ {[%clk 0:01:01]}  Ke6 {[%clk 0:00:04]} 49. Kh3 {[%clk 0:01:01]}  Kd6 {[%clk 0:00:04]} 50. Kh2 {[%clk 0:01:01]}  Ke6 {[%clk 0:00:04]} 51. Kg1 {[%clk 0:01:01]}  Kd6 {[%clk 0:00:05]} 52. Rb4 {[%clk 0:01:01]}  Ke5 {[%clk 0:00:05]} 53. Re4+ {[%clk 0:01:00]}  Kd6 {[%clk 0:00:05]} 54. Re3 {[%clk 0:01:00]}  Kd5 {[%clk 0:00:05]} 55. Kf1 {[%clk 0:00:59]}  Kd6 {[%clk 0:00:06]} 56. g3 {[%clk 0:00:55]}  Kd5 {[%clk 0:00:06]} 57. f4 {[%clk 0:00:55]}  Kd6 {[%clk 0:00:06]} 58. Rc3 {[%clk 0:00:48]}  Kd5 {[%clk 0:00:05]} 59. Re3 {[%clk 0:00:45]}  Kd4 {[%clk 0:00:03]} 60. Re6 {[%clk 0:00:45]}  Rxb3 {[%clk 0:00:03]} 61. Kg2 {[%clk 0:00:42]} 1-0


[Site "https://www.chess.com"]

[Event "Titled Tuesday Blitz May 10 Late 2022"]
[White "Koziorowicz, Michal"]
[Black "Manukian, Artak"]
[WhiteFideId "21809194"]
[BlackFideId "13301373"]
[WhiteElo "2219"]
[BlackElo "2420"]
[Result "0-1"]
[Round "07"]
[TimeControl "180+1"]
[Date "2022.05.11"]
[WhiteClock "0:00:16"]
[BlackClock "0:00:12"]

1. e4 {[%clk 0:03:00]}  c6 {[%clk 0:02:59]} 2. d4 {[%clk 0:03:01]}  d5 {[%clk 0:02:59]} 3. e5 {[%clk 0:03:01]}  Bf5 {[%clk 0:02:59]} 4. Nc3 {[%clk 0:03:01]}  e6 {[%clk 0:02:59]} 5. g4 {[%clk 0:03:00]}  Bg6 {[%clk 0:02:59]} 6. Nge2 {[%clk 0:03:01]}  c5 {[%clk 0:02:58]} 7. h4 {[%clk 0:03:01]}  h5 {[%clk 0:02:57]} 8. Nf4 {[%clk 0:03:01]}  Bh7 {[%clk 0:02:57]} 9. g5 {[%clk 0:03:01]}  Ne7 {[%clk 0:02:50]} 10. Qxh5 {[%clk 0:02:59]}  cxd4 {[%clk 0:02:38]} 11. Nxe6 {[%clk 0:02:49]}  Qa5 {[%clk 0:02:36]} 12. Nxd4 {[%clk 0:02:43]}  Nbc6 {[%clk 0:02:32]} 13. Nb5 {[%clk 0:02:42]}  O-O-O {[%clk 0:02:26]} 14. Bd2 {[%clk 0:02:40]}  Qb4 {[%clk 0:01:59]} 15. O-O-O {[%clk 0:02:24]}  d4 {[%clk 0:01:35]} 16. Ne4 {[%clk 0:02:11]}  Qa4 {[%clk 0:01:22]} 17. Nbd6+ {[%clk 0:02:11]}  Kb8 {[%clk 0:01:22]} 18. Kb1 {[%clk 0:02:10]}  Bxe4 {[%clk 0:01:20]} 19. Nxe4 {[%clk 0:01:13]}  Rxh5 {[%clk 0:01:18]} 20. Nc5 {[%clk 0:01:12]}  Qb4 {[%clk 0:00:55]} 21. Bxb4 {[%clk 0:01:09]}  Nxb4 {[%clk 0:00:56]} 22. Bc4 {[%clk 0:01:08]}  Ned5 {[%clk 0:00:51]} 23. Ne4 {[%clk 0:01:08]}  Nc6 {[%clk 0:00:50]} 24. Bxd5 {[%clk 0:01:07]}  Rxd5 {[%clk 0:00:49]} 25. f4 {[%clk 0:01:08]}  Rh8 {[%clk 0:00:43]} 26. h5 {[%clk 0:01:06]}  Ne7 {[%clk 0:00:41]} 27. Nd6 {[%clk 0:01:03]}  Rxd6 {[%clk 0:00:32]} 28. exd6 {[%clk 0:01:04]}  Nf5 {[%clk 0:00:33]} 29. c3 {[%clk 0:00:51]}  Bxd6 {[%clk 0:00:32]} 30. cxd4 {[%clk 0:00:51]}  Ng3 {[%clk 0:00:29]} 31. Rh3 {[%clk 0:00:49]}  Nxh5 {[%clk 0:00:27]} 32. f5 {[%clk 0:00:50]}  g6 {[%clk 0:00:26]} 33. Rf1 {[%clk 0:00:50]}  Re8 {[%clk 0:00:21]} 34. fxg6 {[%clk 0:00:47]}  fxg6 {[%clk 0:00:21]} 35. Rf7 {[%clk 0:00:48]}  Re7 {[%clk 0:00:19]} 36. Rhf3 {[%clk 0:00:46]}  Rxf7 {[%clk 0:00:18]} 37. Rxf7 {[%clk 0:00:47]}  Bf4 {[%clk 0:00:16]} 38. Rf8+ {[%clk 0:00:46]}  Kc7 {[%clk 0:00:15]} 39. Rg8 {[%clk 0:00:47]}  Bxg5 {[%clk 0:00:14]} 40. Rxg6 {[%clk 0:00:46]}  Bf4 {[%clk 0:00:14]} 41. Kc2 {[%clk 0:00:45]}  Bd6 {[%clk 0:00:14]} 42. Kc3 {[%clk 0:00:36]}  Nf4 {[%clk 0:00:14]} 43. Rh6 {[%clk 0:00:34]}  Nd5+ {[%clk 0:00:13]} 44. Kc4 {[%clk 0:00:33]}  Nb6+ {[%clk 0:00:13]} 45. Kd3 {[%clk 0:00:33]}  Kc6 {[%clk 0:00:11]} 46. Ke4 {[%clk 0:00:31]}  a5 {[%clk 0:00:11]} 47. b3 {[%clk 0:00:31]}  a4 {[%clk 0:00:10]} 48. Rh5 {[%clk 0:00:29]}  axb3 {[%clk 0:00:10]} 49. axb3 {[%clk 0:00:30]}  Kc7 {[%clk 0:00:09]} 50. d5 {[%clk 0:00:28]}  Nd7 {[%clk 0:00:09]} 51. Kf5 {[%clk 0:00:27]}  Nc5 {[%clk 0:00:08]} 52. b4 {[%clk 0:00:25]}  Nd3 {[%clk 0:00:08]} 53. b5 {[%clk 0:00:23]}  Kb6 {[%clk 0:00:07]} 54. Rh6 {[%clk 0:00:22]}  Kc5 {[%clk 0:00:07]} 55. Ke6 {[%clk 0:00:17]}  Nf4+ {[%clk 0:00:07]} 56. Kd7 {[%clk 0:00:17]}  Bf8 {[%clk 0:00:06]} 57. Kc7 {[%clk 0:00:13]}  Bxh6 {[%clk 0:00:06]} 58. d6 {[%clk 0:00:11]}  b6 {[%clk 0:00:04]} 59. d7 {[%clk 0:00:12]}  Bg5 {[%clk 0:00:05]} 60. d8=Q {[%clk 0:00:11]}  Bxd8+ {[%clk 0:00:05]} 61. Kxd8 {[%clk 0:00:11]}  Kxb5 {[%clk 0:00:05]} 62. Ke7 {[%clk 0:00:12]}  Kc5 {[%clk 0:00:06]} 63. Kf6 {[%clk 0:00:12]}  b5 {[%clk 0:00:07]} 64. Ke5 {[%clk 0:00:13]}  b4 {[%clk 0:00:08]} 65. Ke4 {[%clk 0:00:14]}  Kc4 {[%clk 0:00:09]} 66. Ke3 {[%clk 0:00:14]}  Kc3 {[%clk 0:00:09]} 67. Kxf4 {[%clk 0:00:15]}  b3 {[%clk 0:00:10]} 68. Ke4 {[%clk 0:00:15]}  b2 {[%clk 0:00:11]} 69. Kd5 {[%clk 0:00:16]}  b1=Q {[%clk 0:00:12]} 0-1


[Site "https://www.chess.com"]

[Event "Titled Tuesday Blitz May 10 Late 2022"]
[White "Kujawski, Adam"]
[Black "Pesotskiy, Mikhail"]
[WhiteFideId "1100920"]
[BlackFideId "34164453"]
[WhiteElo "1982"]
[BlackElo "2010"]
[Result "0-1"]
[Round "07"]
[TimeControl "180+1"]
[Date "2022.05.11"]
[WhiteClock "0:00:09"]
[BlackClock "0:01:00"]

1. e4 {[%clk 0:03:00]}  e6 {[%clk 0:02:59]} 2. d4 {[%clk 0:03:00]}  d5 {[%clk 0:03:00]} 3. Nc3 {[%clk 0:02:58]}  Bb4 {[%clk 0:03:00]} 4. e5 {[%clk 0:02:58]}  c5 {[%clk 0:03:00]} 5. a3 {[%clk 0:02:59]}  Bxc3+ {[%clk 0:03:01]} 6. bxc3 {[%clk 0:02:59]}  Qa5 {[%clk 0:03:02]} 7. Bd2 {[%clk 0:02:59]}  Qa4 {[%clk 0:03:02]} 8. dxc5 {[%clk 0:02:58]}  Nd7 {[%clk 0:03:00]} 9. Nf3 {[%clk 0:02:57]}  Nxc5 {[%clk 0:02:58]} 10. Rb1 {[%clk 0:02:55]}  Bd7 {[%clk 0:02:58]} 11. Be2 {[%clk 0:02:54]}  Ne7 {[%clk 0:02:56]} 12. O-O {[%clk 0:02:54]}  Rc8 {[%clk 0:02:52]} 13. Rb4 {[%clk 0:02:46]}  Qxa3 {[%clk 0:02:52]} 14. Nd4 {[%clk 0:02:25]}  O-O {[%clk 0:02:42]} 15. Bg5 {[%clk 0:01:53]}  Ng6 {[%clk 0:02:25]} 16. Nb3 {[%clk 0:01:32]}  b6 {[%clk 0:02:19]} 17. f4 {[%clk 0:00:39]}  Ne4 {[%clk 0:02:09]} 18. Qd4 {[%clk 0:00:29]}  Nxc3 {[%clk 0:02:06]} 19. Bd3 {[%clk 0:00:27]}  Rc4 {[%clk 0:01:10]} 20. Bxc4 {[%clk 0:00:26]}  dxc4 {[%clk 0:01:11]} 21. Qxc4 {[%clk 0:00:25]}  Nd5 {[%clk 0:01:05]} 22. Rb5 {[%clk 0:00:18]}  Ne3 {[%clk 0:01:02]} 23. Qb4 {[%clk 0:00:12]}  Qxb4 {[%clk 0:01:00]} 24. Rxb4 {[%clk 0:00:13]}  Nxf1 {[%clk 0:01:01]} 25. Kxf1 {[%clk 0:00:14]}  Rc8 {[%clk 0:01:01]} 26. Nd4 {[%clk 0:00:13]}  h6 {[%clk 0:00:59]} 27. Bh4 {[%clk 0:00:11]}  Nxh4 {[%clk 0:00:59]} 28. g3 {[%clk 0:00:09]}  Nf5 {[%clk 0:00:59]} 29. Nxf5 {[%clk 0:00:09]}  exf5 {[%clk 0:01:00]} 0-1


[Site "https://www.chess.com"]

[Event "Titled Tuesday Blitz May 10 Late 2022"]
[White "Malka, Samuel"]
[Black "Ladan, Nicholas"]
[WhiteFideId "20643675"]
[BlackFideId "30918855"]
[WhiteElo "2552"]
[BlackElo "2167"]
[Result "0-1"]
[Round "07"]
[TimeControl "180+1"]
[Date "2022.05.11"]
[WhiteClock "0:00:02"]
[BlackClock "0:00:04"]

1. b3 {[%clk 0:03:00]}  d5 {[%clk 0:02:58]} 2. Bb2 {[%clk 0:03:00]}  Bg4 {[%clk 0:02:59]} 3. f3 {[%clk 0:03:01]}  Bf5 {[%clk 0:02:56]} 4. e4 {[%clk 0:03:01]}  dxe4 {[%clk 0:02:54]} 5. Qe2 {[%clk 0:03:00]}  Nf6 {[%clk 0:02:40]} 6. Nc3 {[%clk 0:02:53]}  Nc6 {[%clk 0:02:36]} 7. Nxe4 {[%clk 0:02:34]}  Bxe4 {[%clk 0:02:24]} 8. fxe4 {[%clk 0:02:30]}  e5 {[%clk 0:02:24]} 9. Nf3 {[%clk 0:02:26]}  Bd6 {[%clk 0:02:21]} 10. Qb5 {[%clk 0:02:02]}  O-O {[%clk 0:01:56]} 11. O-O-O {[%clk 0:01:24]}  a6 {[%clk 0:01:33]} 12. Qc4 {[%clk 0:01:22]}  Qd7 {[%clk 0:01:14]} 13. h3 {[%clk 0:01:09]}  b5 {[%clk 0:01:12]} 14. Qe2 {[%clk 0:01:09]}  b4 {[%clk 0:01:09]} 15. g4 {[%clk 0:01:04]}  a5 {[%clk 0:01:00]} 16. Qb5 {[%clk 0:01:02]}  Rfb8 {[%clk 0:00:52]} 17. Qa4 {[%clk 0:00:58]}  Nxe4 {[%clk 0:00:47]} 18. Bb5 {[%clk 0:00:51]}  Nc5 {[%clk 0:00:44]} 19. Bxc6 {[%clk 0:00:50]}  Qe7 {[%clk 0:00:42]} 20. Bxa8 {[%clk 0:00:25]}  Nxa4 {[%clk 0:00:42]} 21. bxa4 {[%clk 0:00:26]}  Rxa8 {[%clk 0:00:42]} 22. Rhe1 {[%clk 0:00:27]}  f6 {[%clk 0:00:28]} 23. d4 {[%clk 0:00:26]}  e4 {[%clk 0:00:26]} 24. Nd2 {[%clk 0:00:24]}  Bf4 {[%clk 0:00:26]} 25. Kb1 {[%clk 0:00:25]}  Bxd2 {[%clk 0:00:22]} 26. Rxd2 {[%clk 0:00:25]}  Re8 {[%clk 0:00:21]} 27. Rde2 {[%clk 0:00:26]}  g6 {[%clk 0:00:19]} 28. Bc1 {[%clk 0:00:24]}  Qe6 {[%clk 0:00:15]} 29. g5 {[%clk 0:00:20]}  f5 {[%clk 0:00:15]} 30. Bf4 {[%clk 0:00:20]}  c6 {[%clk 0:00:13]} 31. h4 {[%clk 0:00:19]}  Qc4 {[%clk 0:00:11]} 32. Be5 {[%clk 0:00:18]}  c5 {[%clk 0:00:07]} 33. Rd2 {[%clk 0:00:18]}  Qc3 {[%clk 0:00:05]} 34. Red1 {[%clk 0:00:17]}  e3 {[%clk 0:00:04]} 35. Re2 {[%clk 0:00:15]}  cxd4 {[%clk 0:00:04]} 36. Bxd4 {[%clk 0:00:16]}  Qc4 {[%clk 0:00:03]} 37. Ree1 {[%clk 0:00:13]}  e2 {[%clk 0:00:03]} 38. Rd2 {[%clk 0:00:13]}  Rd8 {[%clk 0:00:03]} 39. Be3 {[%clk 0:00:13]}  Rxd2 {[%clk 0:00:03]} 40. Bxd2 {[%clk 0:00:14]}  Qe4 {[%clk 0:00:03]} 41. Kc1 {[%clk 0:00:11]}  f4 {[%clk 0:00:03]} 42. h5 {[%clk 0:00:10]}  f3 {[%clk 0:00:04]} 43. hxg6 {[%clk 0:00:09]}  hxg6 {[%clk 0:00:05]} 44. Rh1 {[%clk 0:00:06]}  f2 {[%clk 0:00:05]} 45. Kb2 {[%clk 0:00:07]}  Qd4+ {[%clk 0:00:04]} 46. Kc1 {[%clk 0:00:02]}  Qa1# {[%clk 0:00:04]} 0-1


[Site "https://www.chess.com"]

[Event "Titled Tuesday Blitz May 10 Late 2022"]
[White "Mangialardo, Tiago Carvalho"]
[Black "Gomez Dieguez, David"]
[WhiteFideId "2130718"]
[BlackFideId "22223630"]
[WhiteElo "2105"]
[BlackElo "2115"]
[Result "0-1"]
[Round "07"]
[TimeControl "180+1"]
[Date "2022.05.11"]
[WhiteClock "0:00:03"]
[BlackClock "0:00:11"]

1. e4 {[%clk 0:03:00]}  c6 {[%clk 0:02:59]} 2. d4 {[%clk 0:03:00]}  d5 {[%clk 0:03:00]} 3. exd5 {[%clk 0:03:01]}  cxd5 {[%clk 0:03:00]} 4. Bd3 {[%clk 0:03:02]}  Nf6 {[%clk 0:03:00]} 5. Nf3 {[%clk 0:03:02]}  Nc6 {[%clk 0:03:00]} 6. O-O {[%clk 0:03:02]}  Bg4 {[%clk 0:02:59]} 7. c3 {[%clk 0:03:01]}  e6 {[%clk 0:02:59]} 8. Be3 {[%clk 0:02:57]}  Be7 {[%clk 0:02:58]} 9. Nbd2 {[%clk 0:02:57]}  O-O {[%clk 0:02:58]} 10. Re1 {[%clk 0:02:57]}  Bh5 {[%clk 0:02:57]} 11. Qb3 {[%clk 0:02:51]}  Na5 {[%clk 0:02:52]} 12. Qa4 {[%clk 0:02:43]}  Bg6 {[%clk 0:02:49]} 13. Bxg6 {[%clk 0:02:39]}  hxg6 {[%clk 0:02:48]} 14. Ne5 {[%clk 0:02:38]}  a6 {[%clk 0:02:38]} 15. b4 {[%clk 0:02:29]}  Nc6 {[%clk 0:02:18]} 16. Nxc6 {[%clk 0:02:22]}  bxc6 {[%clk 0:02:19]} 17. Qxc6 {[%clk 0:02:22]}  Rc8 {[%clk 0:02:19]} 18. Qxa6 {[%clk 0:02:23]}  Rxc3 {[%clk 0:02:20]} 19. Rec1 {[%clk 0:02:17]}  Bxb4 {[%clk 0:02:13]} 20. a3 {[%clk 0:02:02]}  Ba5 {[%clk 0:01:57]} 21. Rxc3 {[%clk 0:01:48]}  Bxc3 {[%clk 0:01:56]} 22. Nb3 {[%clk 0:01:46]}  Bxa1 {[%clk 0:01:44]} 23. Nxa1 {[%clk 0:01:42]}  Qa8 {[%clk 0:01:42]} 24. Qd3 {[%clk 0:01:41]}  Qa4 {[%clk 0:01:35]} 25. Nc2 {[%clk 0:01:36]}  Rc8 {[%clk 0:01:34]} 26. Nb4 {[%clk 0:01:29]}  Ra8 {[%clk 0:01:22]} 27. Nc2 {[%clk 0:01:28]}  Ne4 {[%clk 0:01:18]} 28. f3 {[%clk 0:01:20]}  Nd6 {[%clk 0:01:18]} 29. Bd2 {[%clk 0:01:21]}  Qa6 {[%clk 0:01:05]} 30. Qb3 {[%clk 0:01:10]}  Qc4 {[%clk 0:00:44]} 31. Qb2 {[%clk 0:01:03]}  Qe2 {[%clk 0:00:33]} 32. Bb4 {[%clk 0:00:57]}  Nc4 {[%clk 0:00:32]} 33. Qc3 {[%clk 0:00:44]}  Qd1+ {[%clk 0:00:24]} 34. Kf2 {[%clk 0:00:42]}  Qh1 {[%clk 0:00:19]} 35. h3 {[%clk 0:00:36]}  Qc1 {[%clk 0:00:20]} 36. Qd3 {[%clk 0:00:25]}  Qb2 {[%clk 0:00:18]} 37. Ke1 {[%clk 0:00:17]}  Qb1+ {[%clk 0:00:17]} 38. Kf2 {[%clk 0:00:17]}  Qb2 {[%clk 0:00:18]} 39. Ke1 {[%clk 0:00:17]}  Rc8 {[%clk 0:00:18]} 40. Bc5 {[%clk 0:00:17]}  Qb1+ {[%clk 0:00:17]} 41. Kf2 {[%clk 0:00:17]}  Nb2 {[%clk 0:00:17]} 42. Qd2 {[%clk 0:00:13]}  Qd1 {[%clk 0:00:17]} 43. Qc3 {[%clk 0:00:06]}  Nc4 {[%clk 0:00:17]} 44. Kg3 {[%clk 0:00:02]}  Qd2 {[%clk 0:00:18]} 45. Qb3 {[%clk 0:00:02]}  Qg5+ {[%clk 0:00:17]} 46. Kf2 {[%clk 0:00:02]}  Qf4 {[%clk 0:00:15]} 47. Qd3 {[%clk 0:00:02]}  g5 {[%clk 0:00:14]} 48. Qb3 {[%clk 0:00:02]}  Qd2+ {[%clk 0:00:13]} 49. Kg3 {[%clk 0:00:02]}  g6 {[%clk 0:00:12]} 50. Kh2 {[%clk 0:00:02]}  Qf4+ {[%clk 0:00:13]} 51. Kg1 {[%clk 0:00:02]}  Nd2 {[%clk 0:00:12]} 52. Qd3 {[%clk 0:00:02]}  Nc4 {[%clk 0:00:11]} 53. Kf2 {[%clk 0:00:02]}  Qf5 {[%clk 0:00:12]} 54. Kg1 {[%clk 0:00:03]}  Qxd3 {[%clk 0:00:11]} 0-1


[Site "https://www.chess.com"]

[Event "Titled Tuesday Blitz May 10 Late 2022"]
[White "Martinez Alcantara, Jose Eduardo"]
[Black "Jones, Gawain C B"]
[WhiteFideId "3805662"]
[BlackFideId "409561"]
[WhiteElo "2690"]
[BlackElo "2657"]
[Result "1-0"]
[Round "07"]
[TimeControl "180+1"]
[Date "2022.05.10"]
[WhiteClock "0:00:15"]
[BlackClock "0:00:06"]

1. e4 {[%clk 0:03:00]}  e5 {[%clk 0:02:59]} 2. Nf3 {[%clk 0:02:57]}  Nc6 {[%clk 0:03:00]} 3. Bb5 {[%clk 0:02:57]}  a6 {[%clk 0:02:58]} 4. Ba4 {[%clk 0:02:58]}  Nf6 {[%clk 0:02:59]} 5. d3 {[%clk 0:02:58]}  d6 {[%clk 0:02:58]} 6. c3 {[%clk 0:02:58]}  g6 {[%clk 0:02:58]} 7. O-O {[%clk 0:02:58]}  Bg7 {[%clk 0:02:59]} 8. h3 {[%clk 0:02:59]}  O-O {[%clk 0:02:59]} 9. Re1 {[%clk 0:02:59]}  Bd7 {[%clk 0:02:56]} 10. d4 {[%clk 0:02:59]}  Qe8 {[%clk 0:02:52]} 11. Bc2 {[%clk 0:02:57]}  Nh5 {[%clk 0:02:52]} 12. Be3 {[%clk 0:02:53]}  f5 {[%clk 0:02:50]} 13. dxe5 {[%clk 0:02:53]}  Nxe5 {[%clk 0:02:45]} 14. exf5 {[%clk 0:02:43]}  Bxf5 {[%clk 0:02:36]} 15. Bxf5 {[%clk 0:02:43]}  Rxf5 {[%clk 0:02:30]} 16. Nxe5 {[%clk 0:02:42]}  Rxe5 {[%clk 0:02:27]} 17. Nd2 {[%clk 0:02:28]}  Kh8 {[%clk 0:02:07]} 18. Nf3 {[%clk 0:02:27]}  Re7 {[%clk 0:02:07]} 19. Qd2 {[%clk 0:02:07]}  Qf7 {[%clk 0:02:04]} 20. Ng5 {[%clk 0:01:58]}  Qf8 {[%clk 0:01:48]} 21. Qd5 {[%clk 0:01:48]}  Rae8 {[%clk 0:01:31]} 22. Qxb7 {[%clk 0:01:45]}  h6 {[%clk 0:01:02]} 23. Nf3 {[%clk 0:01:41]}  a5 {[%clk 0:00:56]} 24. Qb5 {[%clk 0:01:36]}  Rb8 {[%clk 0:00:50]} 25. Qd3 {[%clk 0:01:28]}  Rxb2 {[%clk 0:00:43]} 26. Qxg6 {[%clk 0:01:26]}  Qe8 {[%clk 0:00:36]} 27. Qd3 {[%clk 0:01:24]}  Qb5 {[%clk 0:00:15]} 28. c4 {[%clk 0:01:07]}  Qe8 {[%clk 0:00:12]} 29. Bd2 {[%clk 0:00:58]}  Rxd2 {[%clk 0:00:10]} 30. Qxd2 {[%clk 0:00:56]}  Bxa1 {[%clk 0:00:10]} 31. Qxh6+ {[%clk 0:00:55]}  Kg8 {[%clk 0:00:10]} 32. Qg5+ {[%clk 0:00:53]}  Kf8 {[%clk 0:00:08]} 33. Rxa1 {[%clk 0:00:48]}  Rg7 {[%clk 0:00:07]} 34. Qh6 {[%clk 0:00:47]}  Qg6 {[%clk 0:00:07]} 35. Qxg6 {[%clk 0:00:46]}  Rxg6 {[%clk 0:00:08]} 36. g3 {[%clk 0:00:32]}  Nf4 {[%clk 0:00:08]} 37. Nh4 {[%clk 0:00:32]}  Rg5 {[%clk 0:00:07]} 38. Kh2 {[%clk 0:00:27]}  Nd3 {[%clk 0:00:07]} 39. Rd1 {[%clk 0:00:22]}  Nb2 {[%clk 0:00:08]} 40. Rd5 {[%clk 0:00:15]}  Rg7 {[%clk 0:00:05]} 41. Rxa5 {[%clk 0:00:13]}  Nxc4 {[%clk 0:00:05]} 42. Rf5+ {[%clk 0:00:12]}  Ke8 {[%clk 0:00:05]} 43. Rf4 {[%clk 0:00:13]}  Ne5 {[%clk 0:00:05]} 44. Nf5 {[%clk 0:00:13]}  Rf7 {[%clk 0:00:05]} 45. g4 {[%clk 0:00:14]}  c5 {[%clk 0:00:05]} 46. Nxd6+ {[%clk 0:00:14]}  Ke7 {[%clk 0:00:05]} 47. Nxf7 {[%clk 0:00:14]}  Nxf7 {[%clk 0:00:06]} 48. Kg3 {[%clk 0:00:14]}  Ne5 {[%clk 0:00:06]} 49. Re4 {[%clk 0:00:15]}  Kf6 {[%clk 0:00:06]} 1-0


[Site "https://www.chess.com"]